bitfinex-derivatives/quotes_SOLF0:USTF0_20260213
["timestamp","ask_amount","ask_price","bid_price","bid_amount"]
[1770952091645,3.28899748,78.86,78.816,4.06825018]
[1770952092935,3.80332429,78.87,78.816,4.06825018]
[1770952094744,11.4199,78.869,78.816,4.06825018]
[1770952094944,3.80332429,78.868,78.816,4.06825018]
[1770952095547,3.80332429,78.857,78.801,4.06825018]
[1770952096346,11.4219,78.855,78.801,4.06825018]
[1770952096544,15.22522429,78.855,78.801,4.06825018]
[1770952099357,15.22522429,78.855,78.803,4.06825018]
[1770952099655,8.82994055,78.86,78.803,4.06825018]
[1770952099954,3.80332429,78.872,78.803,4.06825018]
[1770952100751,3.80332429,78.872,78.815,4.06825018]
[1770952101744,15.22312429,78.87,78.815,4.06825018]
[1770952102351,3.80332429,78.883,78.824,4.06825018]
[1770952103454,3.80332429,78.883,78.829,4.06825018]
[1770952104851,3.80332429,78.883,78.832,15.49335018]
[1770952106247,3.80332429,78.883,78.839,4.06825018]
[1770952107654,3.80332429,78.883,78.844,11.4234]
[1770952111057,3.80332429,78.883,78.839,4.06825018]
[1770952111058,4.14743746,78.868,78.814,4.07746565]
[1770952111563,101.22,78.888,78.799,11.4298]
[1770952111564,4.14743746,78.848,78.799,11.4298]
[1770952112363,4.14743746,78.845,78.789,4.07746565]
[1770952112862,4.14743746,78.845,78.797,11.4302]
[1770952114452,4.14743746,78.845,78.802,4.16787736]
[1770952115061,4.14743746,78.845,78.803,15.59717736]
[1770952115269,4.14743746,78.845,78.804,4.16787736]
[1770952115460,3.29801709,78.84,78.804,4.16787736]
[1770952115858,4.14743746,78.845,78.805,11.429]
[1770952116059,3.29801709,78.85,78.806,4.16787736]
[1770952116259,4.1580741,78.858,78.81,7.46589445]
[1770952116667,4.1580741,78.858,78.81,4.16787736]
[1770952116858,4.1580741,78.858,78.811,11.4281]
[1770952117564,4.1580741,78.858,78.811,15.59597736]
[1770952118970,37.97,78.904,78.78,272.37884287]
[1770952118971,4.1580741,78.873,78.824,4.16787736]
[1770952119155,4.1580741,78.873,78.83,7.46589445]
[1770952119356,7.45609119,78.87,78.83,4.16787736]
[1770952119563,4.1580741,78.869,78.83,4.16787736]
[1770952122964,4.1580741,78.867,78.821,4.16787736]
[1770952123770,4.1580741,78.886,78.841,4.16787736]
[1770952124075,4.1580741,78.899,78.841,4.16787736]
[1770952124674,4.1580741,78.897,78.85,3.29801709]
[1770952124868,11.4163,78.894,78.841,4.16787736]
[1770952125173,11.4163,78.894,78.85,3.29801709]
[1770952125374,4.1580741,78.879,78.826,4.16787736]
[1770952126565,4.1580741,78.868,78.826,4.16787736]
[1770952130066,11.4199,78.869,78.786,101.24]
[1770952130067,4.1580741,78.881,78.831,4.16787736]
[1770952130268,3.29801709,78.89,78.841,4.16787736]
[1770952130467,15.1180741,78.898,78.851,4.16787736]
[1770952130664,10.96,78.898,78.871,4.16787736]
[1770952130859,10.96,78.898,78.88,3.29801709]
[1770952131265,1.73800001,78.898,78.88,3.29801709]
[1770952131676,1e-08,78.898,78.88,3.29801709]
[1770952131870,1e-08,78.898,78.88,7.46589445]
[1770952132868,1e-08,78.898,78.88,4.16787736]
[1770952133867,8.81545142,78.95,78.88,4.16787736]
[1770952133868,4.1580741,78.941,78.88,4.16787736]
[1770952134172,4.1580741,78.941,78.881,4.16787736]
[1770952134376,4.1580741,78.941,78.897,4.16787736]
[1770952134871,4.1580741,78.941,78.881,4.16787736]
[1770952135463,4.1580741,78.938,78.882,11.4179]
[1770952136465,4.1580741,78.938,78.882,4.16787736]
[1770952137071,8.81545142,78.95,78.896,4.16787736]
[1770952137274,4.1580741,78.954,78.896,4.16787736]
[1770952137475,4.1580741,78.97,78.896,4.16787736]
[1770952137781,3.56,78.953,78.927,11.4113]
[1770952137973,3.56,78.953,78.908,4.16787736]
[1770952138970,3.56,78.953,78.915,11.413]
[1770952140369,3.87190148,78.952,78.908,4.16787736]
[1770952140677,3.87190148,78.989,78.908,4.16787736]
[1770952140877,3.87190148,78.999,78.921,3.87016627]
[1770952141178,3.87190148,78.999,78.941,3.87016627]
[1770952141978,3.87190148,78.997,78.942,11.4092]
[1770952142476,3.87190148,78.995,78.941,3.87016627]
[1770952142681,3.87190148,78.995,78.933,11.4106]
[1770952143273,3.87190148,78.992,78.938,11.4097]
[1770952145668,3.87190148,78.992,78.947,11.4084]
[1770952149680,102.72,79.004,78.957,11.407]
[1770952150585,102.72,79.004,78.959,11.4067]
[1770952150779,102.72,79.004,78.959,15.27686627]
[1770952150985,102.72,79.004,78.96,3.87016627]
[1770952151186,3.87190148,79.007,78.962,11.4063]
[1770952151881,3.87190148,79.022,78.968,3.87016627]
[1770952153883,3.87190148,79.022,78.978,11.404]
[1770952155377,3.87190148,79.019,78.969,3.87016627]
[1770952155979,3.87190148,79.017,78.969,3.87016627]
[1770952156783,3.87190148,79.017,78.97,11.4051]
[1770952156983,3.87190148,79.017,78.971,3.87016627]
[1770952158678,3.87190148,79.017,78.975,11.4044]
[1770952158884,11.3971,79.026,78.976,3.87016627]
[1770952159584,3.87190148,79.022,78.976,3.87016627]
[1770952160990,11.3979,79.021,78.976,3.87016627]
[1770952161190,3.87190148,79.026,78.961,3.87016627]
[1770952161400,3.87190148,79.026,78.968,3.87016627]
[1770952162593,3.87190148,79.04,78.968,3.87016627]
[1770952162791,3.87190148,79.04,78.986,3.87016627]
[1770952163490,15.26710148,79.04,78.986,15.27296627]
[1770952163787,3.87190148,79.039,78.987,3.87016627]
[1770952164592,3.87190148,79.029,78.974,3.87016627]
[1770952164890,177.1947,79.069,78.92,22.8248]
[1770952164891,3.87190148,79.009,78.921,3.87016627]
[1770952165085,3.87190148,79.007,78.921,3.87016627]
[1770952165882,3.87190148,78.99,78.936,3.87016627]
[1770952166287,3.87190148,78.99,78.949,3.87016627]
[1770952166489,3.87190148,79.003,78.949,3.87016627]
[1770952166887,3.87190148,79.0,78.949,3.87016627]
[1770952167089,3.87190148,79.0,78.921,3.87016627]
[1770952167289,3.87190148,78.998,78.921,3.87016627]
[1770952167890,15.27430148,78.99,78.935,3.87016627]
[1770952169495,3.87190148,78.989,78.935,3.87016627]
[1770952169708,3.87190148,78.985,78.935,3.87016627]
[1770952170799,15.59549581,78.983,78.935,3.87016627]
[1770952170997,4.19199581,78.982,78.935,3.87016627]
[1770952173290,4.19199581,78.982,78.932,11.4106]
[1770952173291,4.19199581,78.975,78.924,11.4118]
[1770952174295,4.00308714,78.988,78.934,3.83813562]
[1770952174691,4.00308714,79.003,78.934,3.83813562]
[1770952175689,4.00308714,79.0,78.949,11.4081]
[1770952175894,4.00308714,79.0,78.95,3.83813562]
[1770952177196,8.79539599,79.01,78.95,3.83813562]
[1770952177197,4.00308714,78.998,78.95,3.83813562]
[1770952180998,4.00308714,79.012,78.96,3.83813562]
[1770952181201,3.28566629,79.01,78.961,3.83813562]
[1770952181702,7.28875343,79.01,78.961,3.83813562]
[1770952181904,4.00308714,79.009,78.963,11.4062]
[1770952182094,4.00308714,79.009,78.963,15.24433562]
[1770952183906,7.28875343,79.02,78.971,3.83813562]
[1770952184107,4.00308714,79.019,78.971,3.83813562]
[1770952184598,11.3983,79.018,78.971,3.83813562]
[1770952186008,15.40168714,79.016,78.971,3.83813562]
[1770952186201,4.00308714,79.015,78.971,3.83813562]
[1770952186397,4.00308714,78.999,78.957,3.83813562]
[1770952187003,3.28566629,79.0,78.959,3.83813562]
[1770952187302,3.28566629,79.01,78.959,3.83813562]
[1770952187701,4.00308714,78.999,78.951,3.83813562]
[1770952188698,4.00308714,78.999,78.953,11.4076]
[1770952188904,4.00308714,78.999,78.954,3.83813562]
[1770952190803,4.00308714,78.999,78.957,11.407]
[1770952191001,4.00308714,78.999,78.958,3.83813562]
[1770952191204,3.28566629,79.01,78.961,3.83813562]
[1770952191719,3.28566629,79.01,78.971,3.83813562]
[1770952193304,3.28566629,79.01,78.973,3.83813562]
[1770952195811,15.6979073,79.045,78.937,15.60278822]
[1770952195812,3.28566629,79.02,78.98,3.83813562]
[1770952196012,4.00308714,79.024,78.98,3.83813562]
[1770952196800,4.00308714,79.024,78.982,15.24153562]
[1770952197011,4.00308714,79.024,78.982,3.83813562]
[1770952197906,4.00308714,79.042,78.971,3.83813562]
[1770952198113,3.28566629,79.02,78.971,3.83813562]
[1770952198305,4.00308714,79.019,78.971,3.83813562]
[1770952198500,15.6979073,79.056,78.961,3.83813562]
[1770952198501,4.00308714,79.009,78.961,3.83813562]
[1770952199712,4.00308714,79.009,78.966,11.4068]
[1770952200615,3.97275475,79.023,78.975,4.16230759]
[1770952201108,3.28566629,79.02,78.975,4.16230759]
[1770952201310,3.97275475,79.009,78.962,4.16230759]
[1770952201914,3.28566629,79.0,78.962,4.16230759]
[1770952202113,3.97275475,79.003,78.962,4.16230759]
[1770952202417,3.28566629,79.01,78.962,4.16230759]
[1770952203006,7.25842104,79.01,78.962,4.16230759]
[1770952203512,3.97275475,79.009,78.962,4.16230759]
[1770952203720,3.97275475,79.009,78.97,11.4063]
[1770952204320,3.97275475,78.999,78.95,7.44797388]
[1770952204510,3.28566629,78.99,78.951,4.16230759]
[1770952204711,7.25842104,78.99,78.951,4.16230759]
[1770952205216,3.97275475,78.99,78.951,4.16230759]
[1770952205805,3.97275475,78.99,78.951,15.57130759]
[1770952206016,3.97275475,78.99,78.952,4.16230759]
[1770952206320,3.97275475,79.0,78.952,4.16230759]
[1770952207313,3.28566629,79.01,78.973,11.4059]
[1770952207514,3.97275475,79.009,78.973,11.4059]
[1770952208213,101.06,79.033,78.963,11.4073]
[1770952208214,3.97275475,78.999,78.963,11.4073]
[1770952208614,3.28566629,78.99,78.953,11.4088]
[1770952208815,3.97275475,78.989,78.953,11.4088]
[1770952209617,3.97275475,78.989,78.949,4.16230759]
[1770952209819,3.97275475,78.989,78.959,11.4078]
[1770952210220,3.97275475,78.979,78.931,4.16230759]
[1770952210720,3.28566629,78.97,78.931,4.16230759]
[1770952211821,3.28566629,78.97,78.937,11.4111]
[1770952213720,7.25842104,78.97,78.937,11.4111]
[1770952214809,3.28566629,78.97,78.937,11.4111]
[1770952215014,101.08,78.991,78.937,11.4111]
[1770952215015,3.97275475,78.979,78.937,11.4111]
[1770952215618,3.97275475,78.979,78.931,4.16230759]
[1770952216019,3.97275475,78.969,78.931,4.16230759]
[1770952219013,3.97275475,78.968,78.917,11.4139]
[1770952219226,3.97275475,78.959,78.917,11.4139]
[1770952221026,3.97275475,78.959,78.917,15.57620759]
[1770952221714,3.97275475,78.959,78.907,117.7]
[1770952221715,3.97275475,78.949,78.908,11.4153]
[1770952223621,3.97275475,78.949,78.908,15.57760759]
[1770952223825,3.97275475,78.949,78.909,4.16230759]
[1770952227129,3.97275475,78.949,78.87,22.8416]
[1770952227130,3.97275475,78.929,78.884,4.16230759]
[1770952228022,3.97275475,78.919,78.884,4.16230759]
[1770952228328,3.97275475,78.919,78.876,11.4199]
[1770952230226,3.97275475,78.919,78.883,11.4188]
[1770952230423,3.28729618,78.93,78.88,3.28729618]
[1770952230925,4.0197167,78.908,78.86,3.28729618]
[1770952231130,4.0197167,78.908,78.861,4.09207103]
[1770952231726,3.28729618,78.9,78.867,11.4213]
[1770952232529,3.28729618,78.9,78.861,4.09207103]
[1770952234330,38.07,78.953,78.82,101.12]
[1770952234331,3.28729618,78.89,78.85,15.32066693]
[1770952234528,3.28729618,78.89,78.85,3.89696693]
[1770952234729,3.28729618,78.89,78.857,11.4226]
[1770952234927,3.86098749,78.899,78.857,11.4226]
[1770952236930,3.86098749,78.899,78.863,11.4218]
[1770952237136,38.07,78.948,78.805,177.804]
[1770952237137,3.28729618,78.91,78.864,3.89696693]
[1770952237432,3.28729618,78.91,78.87,11.4208]
[1770952238038,3.28729618,78.91,78.87,15.31776693]
[1770952238937,3.28729618,78.91,78.87,3.89696693]
[1770952238938,3.86098749,78.909,78.87,3.89696693]
[1770952239732,3.86098749,78.909,78.871,11.4206]
[1770952241128,3.86098749,78.909,78.877,11.4198]
[1770952241434,3.28729618,78.94,78.891,3.89696693]
[1770952241636,3.28729618,78.94,78.899,11.4166]
[1770952241829,3.86098749,78.947,78.9,3.89696693]
[1770952242236,3.86098749,78.947,78.901,3.89696693]
[1770952242437,3.86098749,78.947,78.905,3.89696693]
[1770952243844,3.86098749,78.947,78.857,101.18]
[1770952243845,3.86098749,78.939,78.892,3.89696693]
[1770952244851,3.86098749,78.939,78.894,3.89696693]
[1770952246456,3.86098749,78.939,78.895,11.4172]
[1770952246844,3.86098749,78.939,78.899,11.4166]
[1770952247048,3.86098749,78.939,78.9,3.89696693]
[1770952250853,3.86098749,78.939,78.901,11.4163]
[1770952254158,3.86098749,78.939,78.907,11.4154]
[1770952258461,3.86098749,78.952,78.911,3.89696693]
[1770952260564,3.86098749,78.952,78.911,15.31176693]
[1770952261466,4.11746471,78.949,78.902,11.4162]
[1770952261669,4.11746471,78.939,78.902,11.4162]
[1770952263066,11.4095,78.949,78.907,3.97181483]
[1770952263261,4.11746471,78.952,78.907,3.97181483]
[1770952264371,4.11746471,78.949,78.907,3.97181483]
[1770952264760,4.11746471,78.949,78.91,11.4149]
[1770952267172,4.11746471,78.947,78.907,3.97181483]
[1770952267668,4.11746471,78.946,78.899,11.4166]
[1770952267975,4.11746471,78.946,78.901,3.97181483]
[1770952268876,4.11746471,78.946,78.9,3.28729618]
[1770952268877,4.11746471,78.946,78.903,3.97181483]
[1770952269775,4.11746471,78.946,78.912,11.4147]
[1770952273270,4.11746471,78.944,78.903,3.97181483]
[1770952273574,11.41,78.945,78.903,3.97181483]
[1770952273575,4.11746471,78.939,78.903,3.97181483]
[1770952274476,7.40476089,78.95,78.905,3.97181483]
[1770952274670,4.11746471,78.949,78.905,3.97181483]
[1770952275970,4.11746471,78.949,78.907,3.97181483]
[1770952276167,3.28979044,78.94,78.907,3.97181483]
[1770952276674,3.28979044,78.94,78.89,3.28979044]
[1770952276675,3.28979044,78.94,78.908,15.38711483]
[1770952276975,11.4096,78.948,78.908,15.38711483]
[1770952277875,15.52706471,78.948,78.908,15.38711483]
[1770952279078,4.11746471,78.947,78.909,3.97181483]
[1770952281679,4.11746471,78.959,78.918,3.97181483]
[1770952281978,130.38,78.958,78.918,3.97181483]
[1770952282780,4.11746471,78.955,78.918,3.97181483]
[1770952285078,3.28979044,78.95,78.918,3.97181483]
[1770952288582,4.11746471,78.974,78.926,3.97181483]
[1770952288790,4.11746471,78.974,78.931,3.97181483]
[1770952289903,4.11746471,78.974,78.945,11.4099]
[1770952295893,131.96,78.979,78.945,15.38825106]
[1770952299091,3.8594244,78.995,78.955,3.97835106]
[1770952299291,101.12,78.994,78.955,3.97835106]
[1770952300396,3.28979044,79.0,78.973,11.4059]
[1770952300599,3.28979044,79.01,78.974,3.97835106]
[1770952301095,3.8594244,79.009,78.974,3.97835106]
[1770952301397,3.8594244,79.009,78.976,3.97835106]
[1770952302595,3.28979044,79.0,78.967,11.4067]
[1770952302899,3.28979044,79.0,78.967,15.38505106]
[1770952304299,3.28979044,78.99,78.958,11.4081]
[1770952304895,3.28979044,78.99,78.961,11.4075]
[1770952305102,3.8594244,78.999,78.961,15.38585106]
[1770952305297,3.8594244,78.999,78.961,11.4075]
[1770952306105,3.28979044,78.99,78.961,11.4075]
[1770952309305,3.28979044,78.98,78.952,11.409]
[1770952309508,3.8594244,78.989,78.952,11.409]
[1770952309908,3.8594244,78.989,78.95,3.97835106]
[1770952310910,3.28979044,78.99,78.962,11.4074]
[1770952311099,7.14921484,79.0,78.963,3.97835106]
[1770952312808,7.14921484,79.0,78.964,11.4072]
[1770952315414,3.8594244,78.999,78.964,11.4072]
[1770952320419,3.28979044,78.99,78.957,11.4082]
[1770952320617,4.21093694,78.979,78.931,3.96873052]
[1770952321122,4.21093694,78.979,78.95,11.4092]
[1770952321317,4.21093694,78.989,78.944,3.96873052]
[1770952321517,3.28979044,78.99,78.964,3.96873052]
[1770952321720,3.28979044,79.01,78.964,3.96873052]
[1770952322324,3.28979044,78.99,78.953,3.96873052]
[1770952322626,14.18,79.017,78.953,3.96873052]
[1770952322627,3.28979044,78.98,78.953,3.96873052]
[1770952323027,4.21093694,78.988,78.953,15.37753052]
[1770952328025,3.28979044,78.98,78.953,3.96873052]
[1770952330331,4.21093694,78.979,78.942,3.96873052]
[1770952330517,3.28979044,78.97,78.942,3.96873052]
[1770952332131,3.28979044,78.99,78.942,3.96873052]
[1770952332830,3.28979044,78.99,78.958,3.96873052]
[1770952333218,4.21093694,78.999,78.96,3.96873052]
[1770952333423,3.28979044,78.99,78.96,3.96873052]
[1770952336940,3.28591021,78.99,78.96,3.96873052]
[1770952339232,3.28591021,78.99,78.961,11.4077]
[1770952344333,4.21093694,78.989,78.961,11.4077]
[1770952345542,3.28591021,78.98,78.951,3.96873052]
[1770952346336,4.21093694,78.989,78.951,3.96873052]
[1770952351238,4.21093694,78.989,78.955,4.06935884]
[1770952357147,3.82181214,78.987,78.955,4.06935884]
[1770952359748,3.82181214,78.987,78.957,3.98791584]
[1770952373457,3.28591021,78.99,78.957,3.98791584]
[1770952373759,3.28591021,78.99,78.958,3.98791584]
[1770952375559,7.10772235,78.99,78.958,3.98791584]
[1770952375757,3.82181214,78.989,78.958,3.98791584]
[1770952377358,3.82181214,78.987,78.95,11.4092]
[1770952377550,3.82181214,78.987,78.951,3.98791584]
[1770952379269,3.82181214,78.987,78.953,11.4087]
[1770952379854,3.82181214,78.987,78.953,15.39661584]
[1770952380059,150.98,78.993,78.958,3.98791584]
[1770952381065,152.2,78.994,78.958,3.98791584]
[1770952381465,3.81454397,78.993,78.958,3.98791584]
[1770952381663,3.81454397,78.989,78.95,11.4092]
[1770952382165,3.81454397,78.989,78.951,4.09416839]
[1770952383667,3.81454397,78.989,78.956,4.0948001]
[1770952386160,3.81454397,78.999,78.963,4.0948001]
[1770952386369,153.32,78.998,78.963,4.0948001]
[1770952386866,3.81454397,78.999,78.963,4.0948001]
[1770952387369,153.54,79.007,78.973,4.0948001]
[1770952388762,153.54,79.007,78.976,4.0948001]
[1770952389669,10.64,79.01,78.978,4.0948001]
[1770952390356,10.64,79.01,78.983,4.08577839]
[1770952390967,13.92591021,79.01,78.983,4.08577839]
[1770952394470,10.64,79.01,78.983,4.08577839]
[1770952399670,3.81454397,79.009,78.982,11.4046]
[1770952400075,10.64,79.01,78.986,4.06031683]
[1770952401673,7.09839352,79.02,78.986,4.06031683]
[1770952401875,7.09839352,79.03,78.989,4.06158892]
[1770952402180,3.81454397,79.029,78.989,4.06158892]
[1770952402772,3.81454397,79.029,78.992,11.4031]
[1770952402967,3.81454397,79.029,78.992,15.46468892]
[1770952403879,3.81454397,79.029,78.993,4.02560066]
[1770952406483,3.81454397,79.029,78.995,11.4026]
[1770952410088,3.81454397,79.029,78.996,4.02159708]
[1770952411281,3.81454397,79.029,79.002,15.37764061]
[1770952411882,159.24,79.032,79.003,3.97594061]
[1770952412890,163.09015677,79.032,79.003,3.97594061]
[1770952414394,4.12828335,79.031,79.003,3.97594061]
[1770952416190,4.12828335,79.031,79.002,11.4017]
[1770952416191,4.12828335,79.029,78.993,11.4029]
[1770952416385,4.12828335,79.019,78.993,11.4029]
[1770952418900,4.12828335,79.019,78.986,11.404]
[1770952422993,4.12828335,79.019,78.986,4.00559565]
[1770952423200,4.12828335,79.019,78.992,11.4031]
[1770952424897,4.12828335,79.019,78.976,4.00559565]
[1770952425095,4.12828335,79.009,78.976,4.00559565]
[1770952425693,4.12828335,79.009,78.979,11.405]
[1770952425892,4.12828335,79.009,78.98,4.00559565]
[1770952426195,4.12828335,79.018,78.98,4.00559565]
[1770952427004,4.12828335,79.018,78.99,11.4033]
[1770952430702,4.12828335,79.009,78.979,11.405]
[1770952430907,4.12828335,78.999,78.957,4.00559565]
[1770952431303,3.28384955,78.98,78.949,11.4093]
[1770952431502,4.12828335,78.979,78.949,11.4093]
[1770952432502,4.12828335,78.979,78.945,4.00559565]
[1770952432699,4.12828335,78.969,78.939,11.4107]
[1770952438407,4.12828335,78.969,78.935,4.00559565]
[1770952441404,4.12828335,78.969,78.936,11.4113]
[1770952441909,4.12828335,78.969,78.936,15.46576258]
[1770952442309,4.12828335,78.969,78.937,4.05446258]
[1770952443106,4.12828335,78.969,78.94,4.05446258]
[1770952443309,3.6,78.972,78.94,4.05446258]
[1770952444703,3.6,78.972,78.947,11.4096]
[1770952445710,4.15163846,78.971,78.94,4.05446258]
[1770952445915,3.28384955,78.97,78.94,4.05446258]
[1770952446211,7.43548801,78.97,78.94,4.05446258]
[1770952446709,4.15163846,78.97,78.94,4.05446258]
[1770952453816,3.28384955,79.0,78.951,4.05446258]
[1770952454015,4.15163846,78.999,78.951,4.05446258]
[1770952454609,3.28384955,78.99,78.951,4.05446258]
[1770952454908,3.28384955,78.99,78.958,11.408]
[1770952455416,3.28384955,78.99,78.958,15.46246258]
[1770952456119,3.28384955,78.99,78.96,11.4078]
[1770952456319,4.15163846,78.999,78.96,11.4078]
[1770952459216,4.15163846,78.999,78.965,4.05446258]
[1770952460717,4.15163846,78.999,78.967,11.4067]
[1770952461816,4.15163846,78.999,78.968,4.05446258]
[1770952462023,4.15163846,79.019,78.971,4.05446258]
[1770952462824,4.15163846,79.019,78.981,4.05446258]
[1770952466316,4.15163846,79.019,78.971,4.05446258]
[1770952466522,4.15163846,79.009,78.971,4.05446258]
[1770952466918,4.15163846,79.009,78.969,11.4065]
[1770952467128,4.15163846,78.999,78.969,11.4065]
[1770952468335,4.15163846,78.999,78.961,4.05446258]
[1770952470032,4.15163846,78.999,78.965,4.05446258]
[1770952480652,3.51963963,78.98,78.952,3.96561471]
[1770952480845,4.16795031,78.979,78.952,3.96561471]
[1770952481148,4.16795031,78.979,78.948,11.4094]
[1770952484445,4.16795031,78.979,78.943,3.96561471]
[1770952490658,3.51963963,78.97,78.943,3.96561471]
[1770952491458,4.16795031,78.989,78.948,3.96561471]
[1770952491656,4.16795031,78.989,78.95,3.51963963]
[1770952491861,4.16795031,78.989,78.951,3.96561471]
[1770952497161,4.16795031,78.969,78.919,3.96561471]
[1770952497467,4.16795031,78.969,78.894,3.96561471]
[1770952497468,3.51963963,78.93,78.894,3.96561471]
[1770952497652,3.51963963,78.92,78.894,3.96561471]
[1770952498967,4.16795031,78.929,78.894,3.96561471]
[1770952500264,11.82710953,78.965,78.862,15.70199871]
[1770952500265,3.51963963,78.94,78.895,3.96561471]
[1770952500970,3.51963963,78.93,78.895,3.96561471]
[1770952501864,3.51963963,78.93,78.904,11.4158]
[1770952503469,3.51963963,78.93,78.896,3.90696056]
[1770952504868,3.51963963,78.92,78.885,3.90696056]
[1770952507660,3.51963963,78.92,78.886,11.4184]
[1770952507861,3.51963963,78.92,78.887,3.90696056]
[1770952508872,4.08957644,78.94,78.889,3.90696056]
[1770952509074,3.51963963,78.93,78.889,3.90696056]
[1770952509762,3.51963963,78.93,78.897,3.90696056]
[1770952510675,11.80346055,78.972,78.867,492.40671626]
[1770952510676,3.51963963,78.91,78.872,3.90696056]
[1770952511071,4.08957644,78.919,78.872,3.90696056]
[1770952511879,4.08957644,78.919,78.886,11.4185]
[1770952512476,3.51963963,78.91,78.886,11.4185]
[1770952514468,3.51963963,78.91,78.875,11.42]
[1770952515478,3.51963963,78.91,78.878,11.4197]
[1770952515778,3.51963963,78.91,78.878,15.32666056]
[1770952516778,4.08957644,78.919,78.878,15.32666056]
[1770952517379,4.08957644,78.919,78.879,3.90696056]
[1770952518377,4.08957644,78.919,78.882,3.90696056]
[1770952519775,3.52740511,78.91,78.883,11.4189]
[1770952524378,4.08957644,78.909,78.875,11.4201]
[1770952525578,4.08957644,78.909,78.875,15.32706056]
[1770952526174,4.08957644,78.909,78.877,15.32666056]
[1770952528485,4.08957644,78.909,78.877,3.90696056]
[1770952532384,4.08957644,78.909,78.878,11.4196]
[1770952533386,3.52740511,78.9,78.867,496.50300323]
[1770952533690,7.52463188,78.9,78.868,3.94960734]
[1770952533986,3.99722677,78.9,78.868,3.94960734]
[1770952534386,3.99722677,78.9,78.87,3.94960734]
[1770952534983,3.99722677,78.9,78.871,3.94960734]
[1770952537494,7.52463188,78.9,78.871,3.94960734]
[1770952539079,3.99722677,78.9,78.871,3.94960734]
[1770952539285,3.99722677,78.9,78.85,3.94960734]
[1770952539495,3.99722677,78.898,78.854,3.94960734]
[1770952539994,3.99722677,78.869,78.836,3.94960734]
[1770952541182,3.99722677,78.889,78.85,3.52740511]
[1770952541386,3.99722677,78.889,78.85,7.47701245]
[1770952541590,3.99722677,78.889,78.851,11.4235]
[1770952542183,3.99722677,78.889,78.852,3.94960734]
[1770952546092,3.52740511,78.9,78.861,3.94960734]
[1770952547299,3.99722677,78.907,78.861,3.94960734]
[1770952547790,3.99722677,78.907,78.87,3.52740511]
[1770952548193,3.99722677,78.907,78.861,3.94960734]
[1770952548393,3.99722677,78.919,78.871,3.94960734]
[1770952548692,3.99722677,78.919,78.881,3.94960734]
[1770952549399,3.99722677,78.918,78.881,3.94960734]
[1770952549789,3.99722677,78.918,78.874,11.4202]
[1770952550598,3.99722677,78.918,78.874,15.36980734]
[1770952550894,3.99722677,78.909,78.874,11.4202]
[1770952551893,3.99722677,78.909,78.876,11.4199]
[1770952552090,3.99722677,78.909,78.88,3.52740511]
[1770952552889,3.99722677,78.909,78.88,7.47701245]
[1770952553092,3.99722677,78.919,78.88,7.47701245]
[1770952555298,3.99722677,78.919,78.881,3.94960734]
[1770952560599,4.12437264,78.929,78.89,3.52740511]
[1770952560801,11.75534877,78.947,78.901,3.84421716]
[1770952560993,31.4758948,78.987,78.853,139.2]
[1770952560994,7.65177775,78.95,78.911,3.84421716]
[1770952561195,4.12437264,78.949,78.911,3.84421716]
[1770952572400,4.12437264,78.959,78.918,3.84421716]
[1770952572606,7.65177775,78.97,78.931,3.84421716]
[1770952573805,3.52740511,78.98,78.932,3.84421716]
[1770952574102,4.12437264,78.979,78.941,3.84421716]
[1770952574507,3.52740511,78.97,78.941,3.84421716]
[1770952574807,204.07028703,79.011,78.905,3.84421716]
[1770952574808,4.12437264,78.949,78.905,3.84421716]
[1770952575007,4.12437264,78.929,78.894,3.84421716]
[1770952575209,4.12437264,78.929,78.896,3.84421716]
[1770952576110,4.12437264,78.929,78.898,15.26081716]
[1770952576407,4.12437264,78.953,78.911,3.84421716]
[1770952576912,3.52385386,78.95,78.92,11.4135]
[1770952578502,3.52385386,78.94,78.911,11.4148]
[1770952578806,3.52385386,78.92,78.889,3.84421716]
[1770952579005,3.52385386,78.92,78.89,11.4179]
[1770952579607,4.12437264,78.919,78.881,11.4191]
[1770952579804,4.12437264,78.919,78.881,15.26331716]
[1770952580005,3.52385386,78.92,78.882,3.84421716]
[1770952580207,3.52385386,78.93,78.891,3.84421716]
[1770952581114,3.52385386,78.93,78.892,3.84421716]
[1770952581312,3.52385386,78.92,78.88,3.84421716]
[1770952581518,4.12437264,78.919,78.88,3.84421716]
[1770952581822,3.52385386,78.91,78.88,3.84421716]
[1770952584206,4.12437264,78.919,78.88,3.84421716]
[1770952584607,4.12437264,78.931,78.885,3.84421716]
[1770952584807,3.52385386,78.93,78.891,3.84421716]
[1770952585713,4.12437264,78.944,78.895,3.84421716]
[1770952585919,3.52385386,78.94,78.901,3.84421716]
[1770952586319,3.52385386,78.93,78.901,3.84421716]
[1770952586519,3.52385386,78.92,78.888,3.84421716]
[1770952588110,4.12437264,78.929,78.888,3.84421716]